bitfinex-derivatives/quotes_BTCF0:USTF0_20250322
["timestamp","ask_amount","ask_price","bid_price","bid_amount"]
[1742677107584,0.7145594,84023.0,84022.0,0.2158178]
[1742677109194,0.6003994,84023.0,84022.0,0.2158178]
[1742677109593,0.61323243,84023.0,84022.0,0.2158178]
[1742677109789,0.64493243,84023.0,84022.0,0.2158178]
[1742677110889,0.49419603,84023.0,84022.0,0.2158178]
[1742677111086,0.25243243,84023.0,84022.0,0.2158178]
[1742677111281,0.25243243,84023.0,84022.0,0.09678]
[1742677111793,0.28493243,84023.0,84022.0,0.09678]
[1742677112180,0.2720994,84023.0,84022.0,0.09678]
[1742677112385,0.2720994,84023.0,84022.0,0.2158178]
[1742677114482,0.2395994,84023.0,84022.0,0.2158178]
[1742677115881,0.120563,84023.0,84022.0,0.2158178]
[1742677116289,0.2395994,84023.0,84022.0,0.2158178]
[1742677117787,0.41659947,84023.0,84022.0,0.2158178]
[1742677119899,0.29756307,84023.0,84022.0,0.2158178]
[1742677120295,0.41659947,84023.0,84022.0,0.2158178]
[1742677120997,0.2395994,84023.0,84022.0,0.2158178]
[1742677122204,0.2699994,84023.0,84022.0,0.2158178]
[1742677126293,0.2395994,84023.0,84022.0,0.2158178]
[1742677126799,0.120563,84023.0,84022.0,0.2158178]
[1742677127402,0.2395994,84023.0,84022.0,0.2158178]
[1742677128107,0.41680353,84023.0,84022.0,0.2158178]
[1742677129709,0.44850353,84023.0,84022.0,0.2158178]
[1742677131310,0.152263,84023.0,84022.0,0.2158178]
[1742677132404,0.152263,84023.0,84022.0,0.2157378]
[1742677137211,0.120563,84023.0,84022.0,0.2157378]
[1742677137508,0.50428969,84056.0,84032.0,0.0595115]
[1742677137711,0.0311,84043.0,84040.0,0.1190123]
[1742677137911,0.28542204,84041.0,84040.0,0.2333323]
[1742677138610,0.28542204,84041.0,84040.0,0.2959323]
[1742677139316,0.28842204,84041.0,84040.0,0.2959323]
[1742677139906,0.29142204,84041.0,84040.0,0.2959323]
[1742677141004,0.00712001,84041.0,84040.0,0.2959323]
[1742677141209,0.006,84041.0,84040.0,0.2959323]
[1742677144524,0.00708001,84041.0,84040.0,0.2959323]
[1742677144707,0.006,84041.0,84040.0,0.2959323]
[1742677144907,0.00712001,84041.0,84040.0,0.2959323]
[1742677145108,0.006,84041.0,84040.0,0.2959323]
[1742677145309,0.1250109,84041.0,84040.0,0.2959323]
[1742677145517,0.00708001,84041.0,84040.0,0.2959323]
[1742677145713,0.006,84041.0,84040.0,0.2959323]
[1742677145910,0.00708001,84041.0,84040.0,0.2959323]
[1742677146123,0.15699091,84041.0,84040.0,0.2959323]
[1742677148314,0.27598115,84041.0,84040.0,0.0632]
[1742677148509,0.27598115,84041.0,84040.0,0.1822123]
[1742677148726,0.27598115,84041.0,84040.0,0.1497123]
[1742677149621,0.27598115,84041.0,84040.0,0.0307]
[1742677149823,0.27598115,84041.0,84040.0,0.1497123]
[1742677150007,0.27598115,84041.0,84040.0,0.0307]
[1742677150632,0.27598115,84041.0,84040.0,0.0006]
[1742677150817,0.27598115,84041.0,84032.0,0.00017845]
[1742677150818,0.1190222,84033.0,84032.0,0.00017845]
[1742677151018,0.1203022,84033.0,84032.0,0.00017845]
[1742677151322,0.13277406,84033.0,84032.0,0.00017845]
[1742677151523,0.31547563,84033.0,84032.0,0.00017845]
[1742677151723,0.31419563,84033.0,84032.0,0.00017845]
[1742677152227,0.31519563,84033.0,84032.0,0.00017845]
[1742677152722,0.31619563,84033.0,84032.0,0.00017845]
[1742677152923,0.0595165,84026.0,84016.0,0.14764]
[1742677153132,0.1190392,84021.0,84020.0,0.0319]
[1742677153737,0.23805493,84021.0,84020.0,0.0319]
[1742677154128,0.30265493,84021.0,84020.0,0.0319]
[1742677154535,0.30265493,84021.0,84020.0,0.1509407]
[1742677154933,0.30265493,84021.0,84020.0,0.0319]
[1742677155128,0.30265493,84021.0,84020.0,0.0329]
[1742677156642,0.1190463,84016.0,84015.0,0.0004761]
[1742677156845,0.1190463,84016.0,84001.0,0.28512325]
[1742677156846,0.1190662,84002.0,84001.0,0.28512325]
[1742677157139,0.1190676,84001.0,84000.0,0.1]
[1742677157338,0.1494676,84001.0,84000.0,0.1006]
[1742677157532,0.1507876,84001.0,84000.0,0.1]
[1742677158042,0.26983309,84001.0,84000.0,0.1]
[1742677158340,0.30293309,84001.0,84000.0,0.1329]
[1742677159534,0.30293309,84001.0,84000.0,0.13354]
[1742677160137,0.30293309,84001.0,84000.0,0.252609]
[1742677160344,0.28328813,84001.0,84000.0,0.252609]
[1742677163640,0.31368813,84001.0,84000.0,0.13354]
[1742677163844,0.31368813,84001.0,84000.0,0.1329]
[1742677164048,0.31368813,84001.0,84000.0,0.13358]
[1742677164535,0.31368813,84001.0,84000.0,0.252649]
[1742677164734,0.31368813,84001.0,84000.0,0.283649]
[1742677165942,0.30123309,84001.0,84000.0,0.283649]
[1742677166146,0.31378454,84001.0,84000.0,0.283649]
[1742677166349,0.28338454,84001.0,84000.0,0.283649]
[1742677170951,0.13391694,84001.0,84000.0,0.283649]
[1742677172940,0.12136549,84001.0,84000.0,0.283649]
[1742677173341,0.00232,84001.0,84000.0,0.283649]
[1742677173545,0.001,84001.0,84000.0,0.283649]
[1742677176547,0.1200676,84001.0,84000.0,0.283649]
[1742677176748,0.1213876,84001.0,84000.0,0.283649]
[1742677177050,0.24043451,84001.0,84000.0,0.283649]
[1742677178050,0.27223451,84001.0,84000.0,0.283649]
[1742677188169,0.37909243,84001.0,84000.0,0.283649]
[1742677189365,0.40909243,84001.0,84000.0,0.283649]
[1742677189668,0.37909243,84001.0,84000.0,0.283649]
[1742677192070,0.41149243,84001.0,84000.0,0.13358]
[1742677192274,0.44249243,84001.0,84000.0,0.1329]
[1742677193668,0.44249243,84001.0,84000.0,0.1335]
[1742677194283,0.55793243,84001.0,84000.0,0.1335]
[1742677195176,0.55789243,84001.0,84000.0,0.1335]
[1742677195381,0.55789243,84001.0,84000.0,0.1329]
[1742677195569,0.55789243,84001.0,84000.0,0.1335]
[1742677195962,0.55789243,84001.0,84000.0,0.252569]
[1742677197081,0.68400227,84001.0,84000.0,0.252569]
[1742677198471,0.68400227,84001.0,84000.0,0.251969]
[1742677199084,0.68400227,84001.0,84000.0,0.1329]
[1742677200374,0.68400227,84001.0,84000.0,0.1335]
[1742677201281,0.68400227,84001.0,83985.0,0.0595449]
[1742677201282,0.1190888,83986.0,83985.0,0.0595449]
[1742677201480,0.2344088,83986.0,83985.0,0.0601449]
[1742677201684,0.00144,83986.0,83985.0,0.0608249]
[1742677201985,0.35489571,83986.0,83985.0,0.0916249]
[1742677202886,0.35489571,83986.0,83985.0,0.0946249]
[1742677204081,0.35489571,83986.0,83985.0,0.1260249]
[1742677204790,0.35489571,83986.0,83985.0,0.06648]
[1742677205178,0.38499571,83986.0,83985.0,0.0658]
[1742677205891,0.38499571,83986.0,83985.0,0.06648]
[1742677206194,0.39757042,83986.0,83985.0,0.06648]
[1742677206385,0.36847042,83986.0,83985.0,0.06348]
[1742677206687,0.36847042,83986.0,83985.0,0.0628]
[1742677206891,0.36847042,83986.0,83985.0,0.0634]
[1742677207289,0.40067042,83986.0,83985.0,0.0634]
[1742677207476,0.40067042,83986.0,83985.0,0.0628]
[1742677207680,0.43147042,83986.0,83985.0,0.0628]
[1742677207883,0.51137488,83986.0,83985.0,0.0628]
[1742677208091,0.51237488,83986.0,83985.0,0.0628]
[1742677208287,0.51237488,83986.0,83985.0,0.0634]
[1742677208490,0.51237488,83986.0,83985.0,0.0628]
[1742677208791,0.51237488,83986.0,83985.0,0.1825303]
[1742677209382,0.51337488,83986.0,83985.0,0.06344]
[1742677209581,0.51337488,83986.0,83985.0,0.1818903]
[1742677209889,0.51337488,83986.0,83985.0,0.0634]
[1742677210291,0.51337488,83986.0,83985.0,0.0628]
[1742677210493,0.51337488,83986.0,83985.0,0.0634]
[1742677210989,0.1190917,83984.0,83983.0,0.00047628]
[1742677211189,0.13043237,83984.0,83983.0,0.00047628]
[1742677211394,0.2548641,83984.0,83983.0,0.00047628]
[1742677211598,0.3188724,83984.0,83967.0,0.00047637]
[1742677211789,0.1191371,83952.0,83951.0,0.11961497]
[1742677211981,0.12875776,83952.0,83951.0,0.11961497]
[1742677212280,0.13039777,83952.0,83951.0,0.00047647]
[1742677212588,0.2585005,83952.0,83951.0,0.11961497]
[1742677212978,0.25836877,83952.0,83951.0,0.11961497]
[1742677213183,0.25836877,83952.0,83951.0,0.12261497]
[1742677213491,0.25836877,83952.0,83951.0,0.00347647]
[1742677213992,0.24933704,83952.0,83951.0,0.00347647]
[1742677214195,0.28243704,83952.0,83951.0,0.09627647]
[1742677214386,0.31413704,83952.0,83951.0,0.06567647]
[1742677214896,0.43917261,83952.0,83951.0,0.03467647]
[1742677215391,0.42968368,83952.0,83951.0,0.03167647]
[1742677215593,0.16576658,83952.0,83951.0,0.15081497]
[1742677215791,0.16576658,83952.0,83951.0,0.03167647]
[1742677215792,0.25180368,83952.0,83951.0,0.03167647]
[1742677215992,0.24284811,83952.0,83951.0,0.15081497]
[1742677216585,0.38621196,83952.0,83951.0,0.15081497]
[1742677217194,0.4077407,83952.0,83951.0,0.15081497]
[1742677217899,0.4037407,83952.0,83951.0,0.15081497]
[1742677218094,0.4087407,83952.0,83951.0,0.15081497]
[1742677219190,0.4411407,83952.0,83951.0,0.15081497]
[1742677221194,0.45710701,83952.0,83951.0,0.15081497]
[1742677221594,0.31574316,83952.0,83951.0,0.15081497]
[1742677221802,0.31574316,83952.0,83951.0,0.03167647]
[1742677222393,0.3171829,83952.0,83951.0,0.03167647]
[1742677222890,0.69332462,83952.0,83951.0,0.03167647]
[1742677223291,0.69332462,83952.0,83951.0,0.00485679]
[1742677223697,0.69332462,83952.0,83951.0,0.12399529]
[1742677224103,0.69332462,83952.0,83951.0,0.15449529]
[1742677224310,0.31550557,83952.0,83951.0,0.15449529]
[1742677225207,0.30016385,83952.0,83951.0,0.15449529]
[1742677226094,0.29970822,83952.0,83951.0,0.15449529]
[1742677226505,0.33040822,83952.0,83951.0,0.15449529]
[1742677227401,0.33040822,83952.0,83951.0,0.03535679]
[1742677228200,0.33045147,83952.0,83951.0,0.03535679]
[1742677229502,0.1191555,83939.0,83938.0,0.5395329]
[1742677229705,0.1787325,83941.0,83940.0,0.1191541]
[1742677229898,0.18995596,83941.0,83940.0,0.1191541]
[1742677230205,0.13033985,83941.0,83940.0,0.1191541]
[1742677230397,0.24949255,83941.0,83940.0,0.1191541]
[1742677230598,0.25873335,83941.0,83940.0,0.1191541]
[1742677230809,0.13958065,83941.0,83940.0,0.19223638]
[1742677231204,0.02046426,83941.0,83940.0,0.07308228]
[1742677231397,0.13961696,83941.0,83940.0,0.07308228]
[1742677231597,0.13961696,83941.0,83940.0,0.19223638]
[1742677231908,0.17121696,83941.0,83940.0,0.07308228]
[1742677232102,0.17321696,83941.0,83940.0,0.10518228]
[1742677232912,0.17321696,83941.0,83940.0,0.22433638]
[1742677233298,0.17521696,83941.0,83940.0,0.10518228]
[1742677233604,0.17521696,83941.0,83940.0,0.22433638]
[1742677234107,0.17521696,83941.0,83940.0,0.10518228]
[1742677234505,0.17521696,83941.0,83940.0,0.22433638]
[1742677235619,0.17550339,83941.0,83940.0,0.22433638]
[1742677236805,0.14114052,83948.0,83947.0,0.1191442]
[1742677237001,0.0325,83969.0,83957.0,0.11913]
[1742677237217,0.05974157,83960.0,83957.0,0.59833]
[1742677237400,0.33241438,83958.0,83957.0,0.48053]
[1742677237709,0.33241438,83958.0,83957.0,0.59893]
[1742677237908,0.33241438,83958.0,83957.0,0.66253]
[1742677238603,0.33241438,83958.0,83957.0,0.54413]
[1742677238805,0.33441438,83958.0,83957.0,0.66253]
[1742677239005,0.33541438,83958.0,83957.0,0.66253]
[1742677240109,0.12336861,83958.0,83957.0,0.66253]
[1742677242507,0.139444,83958.0,83957.0,0.51731626]
[1742677242711,0.21621981,83958.0,83957.0,0.63575626]
[1742677242908,0.21621981,83958.0,83957.0,0.49050252]
[1742677243410,0.21621981,83958.0,83957.0,0.60890252]
[1742677243603,0.21621981,83958.0,83957.0,0.60886252]
[1742677244004,0.21621981,83958.0,83957.0,0.49050252]
[1742677244497,0.20014442,83958.0,83957.0,0.60882252]
[1742677244702,0.20014442,83958.0,83957.0,0.60906252]
[1742677245011,0.20014442,83958.0,83957.0,0.60914252]
[1742677245212,0.08101582,83958.0,83957.0,0.60914252]
[1742677245914,0.06554001,83958.0,83957.0,0.60914252]
[1742677246711,0.18466861,83958.0,83957.0,0.60914252]
[1742677246906,0.30377649,83958.0,83957.0,0.60914252]
[1742677249717,0.31300166,83958.0,83957.0,0.60914252]
[1742677250720,0.19387306,83958.0,83957.0,0.60914252]
[1742677250915,0.19387306,83958.0,83957.0,0.49050252]
[1742677251103,0.04406518,83958.0,83957.0,0.49050252]
[1742677251507,0.01346518,83958.0,83957.0,0.49050252]
[1742677251710,0.01346518,83958.0,83957.0,0.60894252]
[1742677251916,0.01346518,83958.0,83957.0,0.49050252]
[1742677252118,0.01346518,83958.0,83957.0,0.60894252]
[1742677252621,0.01346518,83958.0,83957.0,0.49050252]
[1742677252822,0.01346518,83958.0,83957.0,0.60886252]
[1742677253217,0.01246518,83958.0,83957.0,0.60886252]
[1742677253417,0.01246518,83958.0,83957.0,0.24806252]
[1742677253624,0.01246518,83958.0,83957.0,0.60882252]
[1742677253824,0.01122517,83958.0,83957.0,0.60882252]
[1742677254338,0.07452517,83958.0,83957.0,0.60882252]
[1742677254536,0.07452517,83958.0,83957.0,0.60878252]
[1742677254726,0.07452517,83958.0,83957.0,0.49050252]
[1742677255038,0.07576518,83958.0,83957.0,0.49050252]
[1742677255335,0.07576518,83958.0,83957.0,0.60886252]
[1742677255531,0.08406938,83958.0,83957.0,0.60886252]
[1742677255731,0.08522938,83958.0,83957.0,0.60886252]
[1742677256625,0.08406938,83958.0,83957.0,0.60886252]
[1742677257037,0.32346586,83958.0,83957.0,0.49050252]
[1742677257230,0.32346586,83958.0,83957.0,0.60878252]
[1742677257535,0.20433726,83958.0,83957.0,0.60878252]
[1742677258436,0.20440893,83958.0,83957.0,0.60878252]
[1742677260028,0.21960569,83958.0,83957.0,0.60878252]
[1742677260229,0.33873429,83958.0,83957.0,0.57618252]
[1742677260432,0.33875795,83958.0,83957.0,0.57618252]
[1742677261138,0.21962935,83958.0,83957.0,0.57618252]
[1742677262034,0.33875795,83958.0,83957.0,0.60788252]
[1742677262246,0.21962935,83958.0,83957.0,0.60788252]
[1742677262539,0.10052147,83958.0,83957.0,0.60788252]
[1742677262737,0.10052147,83958.0,83957.0,0.64068252]
[1742677263134,0.08532471,83958.0,83957.0,0.64068252]
[1742677263337,0.05222471,83958.0,83957.0,0.64068252]
[1742677263539,0.05221597,83958.0,83957.0,0.64068252]
[1742677264340,0.06752219,83958.0,83957.0,0.64068252]
[1742677264847,0.06752219,83958.0,83957.0,0.60788252]
[1742677265541,0.0676585,83958.0,83957.0,0.54238]
[1742677265843,0.0676585,83958.0,83957.0,0.51153]
[1742677266039,0.0676585,83958.0,83957.0,0.62949]
[1742677266239,0.05119228,83958.0,83957.0,0.62949]
[1742677267247,0.06662014,83958.0,83957.0,0.62949]
[1742677267633,0.06778014,83958.0,83957.0,0.62949]
[1742677268135,0.18690874,83958.0,83957.0,0.48053]
[1742677268341,0.30601662,83958.0,83957.0,0.48053]
[1742677268546,0.33911662,83958.0,83957.0,0.48053]
[1742677268844,0.21998802,83958.0,83957.0,0.48053]
[1742677269242,0.22006351,83958.0,83957.0,0.54503]
[1742677269848,0.33919211,83958.0,83957.0,0.54503]
[1742677271147,0.33885283,83958.0,83957.0,0.54503]
[1742677271644,0.33885283,83958.0,83957.0,0.50778882]
[1742677271844,0.33885283,83958.0,83957.0,0.47638882]
[1742677273244,0.45291048,83958.0,83957.0,0.47638882]
[1742677273556,0.44326929,83958.0,83957.0,0.08308882]
[1742677273737,0.44326929,83958.0,83957.0,0.0006]
[1742677274837,0.44326929,83958.0,83956.0,8e-05]
[1742677275038,0.44326929,83958.0,83952.0,0.0907683]
[1742677275039,0.0595671,83955.0,83952.0,0.0312]
[1742677275247,0.1191357,83953.0,83952.0,0.1503357]
[1742677275454,0.1206557,83953.0,83952.0,0.1503357]
[1742677275750,0.32527874,83953.0,83952.0,0.1503357]
[1742677276444,0.30998875,83953.0,83952.0,0.1503357]
[1742677278147,0.30998875,83953.0,83952.0,0.1191357]
[1742677278342,0.30998875,83953.0,83952.0,0.1512357]
[1742677279254,0.31098875,83953.0,83952.0,0.1512357]
[1742677279642,0.31198875,83953.0,83952.0,0.1512357]
[1742677280353,0.4260464,83953.0,83952.0,0.1512357]
[1742677282460,0.4260464,83953.0,83952.0,0.0321]
[1742677282755,0.4260464,83953.0,83952.0,0.1512371]
[1742677283555,0.43556417,83953.0,83952.0,0.1512371]
[1742677284143,0.32150652,83953.0,83952.0,0.1512371]
[1742677286558,0.32152462,83953.0,83952.0,0.1512371]
[1742677288263,0.1191371,83952.0,83951.0,8e-05]
[1742677288459,0.19479297,83952.0,83951.0,0.1192185]
[1742677288766,0.20401814,83952.0,83951.0,0.1191385]
[1742677288965,0.32313453,83952.0,83951.0,0.1191385]
[1742677289859,0.33948657,83952.0,83951.0,0.05507613]
[1742677291167,0.32413453,83952.0,83951.0,0.05507613]
[1742677291867,0.20499743,83952.0,83951.0,0.05507613]
[1742677292048,0.20499743,83952.0,83951.0,0.08677613]
[1742677292249,0.20509465,83952.0,83951.0,0.14787613]
[1742677292453,0.22034303,83952.0,83951.0,0.14787613]
[1742677292963,0.20509465,83952.0,83951.0,0.14787613]
[1742677293167,0.32139243,83952.0,83951.0,0.14787613]
[1742677294064,0.44044802,83952.0,83951.0,0.14787613]
[1742677294268,0.1191385,83951.0,83950.0,0.1192199]
[1742677294468,0.13021008,83951.0,83950.0,0.1192199]
[1742677294767,0.20163525,83951.0,83950.0,0.1191399]
[1742677294964,0.32075306,83951.0,83950.0,0.1191399]
[1742677295163,0.32075306,83951.0,83950.0,0.1844399]
[1742677295575,0.20161456,83951.0,83950.0,0.1844399]
[1742677295766,0.32075306,83951.0,83950.0,0.1844399]
[1742677296467,0.33322085,83951.0,83950.0,0.1844399]
[1742677297668,0.20453077,83951.0,83950.0,0.1844399]
[1742677297869,0.19206298,83951.0,83950.0,0.2164399]
[1742677298171,0.19406298,83951.0,83950.0,0.2164399]
[1742677298371,0.16306298,83951.0,83950.0,0.2164399]
[1742677298565,0.16506298,83951.0,83950.0,0.2164399]
[1742677298966,0.16506298,83951.0,83950.0,0.3344399]
[1742677298967,0.00552,83951.0,83950.0,0.3344399]
[1742677299165,0.00552,83951.0,83950.0,0.6952399]
[1742677299166,0.21690678,83951.0,83950.0,0.6952399]
[1742677299762,0.21790678,83951.0,83950.0,0.6952399]
[1742677300373,0.21590678,83951.0,83950.0,0.6962399]
[1742677301071,0.21290678,83951.0,83950.0,0.6962399]
[1742677301372,0.21290678,83951.0,83950.0,0.6972399]
[1742677302466,0.21290678,83951.0,83950.0,0.6962399]
[1742677302668,0.21450678,83951.0,83950.0,0.6952399]
[1742677302977,0.0016,83951.0,83950.0,0.6952399]
[1742677303674,0.0327,83953.0,83952.0,0.1191371]
[1742677303975,0.03422,83953.0,83952.0,0.1191371]
[1742677304175,0.06502,83953.0,83952.0,0.1191371]
[1742677305277,0.06602,83953.0,83952.0,0.1191371]
[1742677305976,0.06702,83953.0,83952.0,0.1191371]
[1742677306177,0.06702,83953.0,83952.0,0.2368971]
[1742677306870,0.07611777,83953.0,83952.0,0.2368971]
[1742677307062,0.25360438,83953.0,83952.0,0.2368971]
[1742677309177,0.49185505,83953.0,83952.0,0.2367771]
[1742677309474,0.37271935,83953.0,83952.0,0.2367771]
[1742677309979,0.37271935,83953.0,83952.0,0.2367371]
[1742677310588,0.37271935,83953.0,83952.0,0.1191371]
[1742677312282,0.49185505,83953.0,83952.0,0.1191371]
[1742677313374,0.49192106,83953.0,83952.0,0.1191371]
[1742677315182,0.43081839,83953.0,83952.0,0.1191371]
[1742677319786,0.44030674,83953.0,83952.0,0.1191371]
[1742677321386,0.32117104,83953.0,83951.0,8e-05]
[1742677321686,0.16102545,83952.0,83951.0,0.1192185]
[1742677321882,0.17170923,83952.0,83951.0,0.1192185]
[1742677322077,0.23737699,83952.0,83951.0,0.1192185]
[1742677322478,0.35649267,83952.0,83951.0,0.1192185]
[1742677322988,0.35749267,83952.0,83951.0,0.1192185]
[1742677323485,0.35849267,83952.0,83951.0,0.1192185]
[1742677323981,0.35849267,83952.0,83951.0,8e-05]
[1742677324581,0.1191385,83951.0,83950.0,0.1191394]
[1742677324775,0.13031461,83951.0,83950.0,0.1191394]
[1742677325084,0.13031461,83951.0,83949.0,0.3608]
[1742677325085,0.1191399,83950.0,83949.0,0.3608]
[1742677325285,0.1191541,83940.0,83935.0,0.00047656]
[1742677325599,0.14229027,83940.0,83938.0,0.119156]
[1742677325780,0.27057044,83940.0,83938.0,0.2383116]
[1742677325975,0.26091433,83940.0,83938.0,0.2384716]
[1742677326180,0.26091433,83940.0,83939.0,0.4799555]
[1742677326386,0.32381433,83940.0,83939.0,0.4799555]
[1742677326585,0.32381433,83940.0,83939.0,0.5112555]
[1742677326872,0.32381433,83940.0,83939.0,0.5122555]
[1742677327184,0.32381433,83940.0,83939.0,0.3618]
[1742677327388,0.32381433,83940.0,83939.0,0.3638]
[1742677327593,0.32381433,83940.0,83939.0,0.4829555]
[1742677327889,0.3333722,83940.0,83939.0,0.4809555]
[1742677328676,0.3333722,83940.0,83939.0,0.3618]
[1742677328879,0.3333722,83940.0,83939.0,0.3608]
[1742677329087,0.1191555,83939.0,83938.0,0.00016]
[1742677329282,0.13031337,83939.0,83938.0,0.00016]
[1742677329484,0.19511337,83939.0,83938.0,0.1191569]
[1742677329687,0.19513188,83939.0,83938.0,0.1191569]
[1742677329895,0.3142653,83939.0,83938.0,0.1191569]
[1742677330193,0.33866466,83939.0,83938.0,0.1191569]
[1742677330390,0.33966466,83939.0,83938.0,0.1504569]
[1742677330692,0.34066466,83939.0,83938.0,0.1504569]
[1742677330881,0.32542908,83939.0,83938.0,0.1504569]
[1742677331483,0.20627358,83939.0,83938.0,0.1504569]
[1742677331689,0.44720842,83939.0,83938.0,0.1504569]
[1742677331886,0.43771511,83939.0,83938.0,0.1504569]
[1742677332285,0.31855961,83939.0,83938.0,0.1504569]
[1742677332590,0.43771511,83939.0,83938.0,0.1504569]
[1742677335401,0.3158527,83939.0,83938.0,0.1504569]
[1742677338091,0.30668892,83939.0,83938.0,0.1504569]
[1742677341805,0.30668892,83939.0,83938.0,0.1815569]
[1742677346199,0.30668892,83939.0,83938.0,0.1504569]
[1742677347209,0.30668892,83939.0,83938.0,0.0313]
[1742677348917,0.30668892,83939.0,83938.0,0.1504569]
[1742677349105,0.30668892,83939.0,83938.0,0.0313]
[1742677349515,0.30668892,83939.0,83938.0,0.0643]
[1742677350404,0.30668892,83939.0,83938.0,0.1834569]
[1742677351916,0.42183879,83939.0,83938.0,0.1834569]
[1742677354705,0.30668892,83939.0,83938.0,0.1834569]
[1742677358120,0.30668892,83939.0,83938.0,0.1504569]
[1742677362023,0.41969403,83939.0,83938.0,0.1504569]
[1742677363536,0.41969403,83939.0,83938.0,0.1834569]
[1742677365217,0.30053853,83939.0,83938.0,0.1834569]
[1742677365418,0.41969403,83939.0,83938.0,0.1834569]
[1742677367821,0.55028955,83939.0,83938.0,0.1834569]
[1742677374620,0.41969403,83939.0,83938.0,0.1834569]
[1742677375930,0.43671403,83939.0,83938.0,0.1834569]
[1742677378524,0.43671403,83939.0,83938.0,0.0643]
[1742677379717,0.43671403,83939.0,83938.0,0.1834569]
[1742677381029,0.47034403,83939.0,83938.0,0.1834569]
[1742677383921,0.1191569,83938.0,83937.0,8e-05]
[1742677384127,0.4814769,83938.0,83937.0,8e-05]
[1742677384337,0.5434769,83938.0,83937.0,8e-05]
[1742677384629,0.1191598,83936.0,83935.0,0.00047656]
[1742677384830,0.1206798,83936.0,83935.0,0.00047656]
[1742677385034,0.1818798,83936.0,83935.0,0.00047656]
[1742677385230,0.19088123,83936.0,83935.0,0.00047656]
[1742677385436,0.31002033,83936.0,83935.0,0.00047656]
[1742677386329,0.3010189,83936.0,83935.0,0.03297656]
[1742677387337,0.54421608,83936.0,83935.0,0.03297656]
[1742677387635,0.54886608,83936.0,83935.0,0.03297656]
[1742677388132,0.54886608,83936.0,83935.0,0.00047656]
[1742677388335,0.119174,83926.0,83925.0,0.0312]
[1742677388534,0.120694,83926.0,83925.0,0.0312]
[1742677388934,0.120694,83926.0,83919.0,0.00055665]
[1742677388935,0.1191825,83920.0,83919.0,5e-08]
[1742677389232,0.0595983,83911.0,83905.0,8e-05]
[1742677389529,0.1192038,83905.0,83903.0,0.00047674]
[1742677389735,0.1207238,83905.0,83903.0,0.00047674]
[1742677389927,0.1862238,83905.0,83904.0,0.28520325]
[1742677390238,0.1192095,83901.0,83900.0,0.46145242]
[1742677390440,0.23744951,83901.0,83900.0,0.46145242]
[1742677391029,0.35663262,83901.0,83900.0,0.46145242]
[1742677391341,0.35663262,83901.0,83900.0,0.105]
[1742677391837,0.35763262,83901.0,83900.0,0.105]
[1742677392539,0.12174312,83901.0,83900.0,0.2242109]
[1742677392835,0.35807262,83901.0,83900.0,0.2892109]
[1742677393029,0.35907262,83901.0,83900.0,0.2892109]
[1742677393832,0.39137262,83901.0,83900.0,0.2892109]
[1742677394238,0.01185856,83905.0,83904.0,0.1192052]
[1742677394543,0.3608,83921.0,83915.0,0.1191896]
[1742677394741,0.01300601,83916.0,83915.0,0.1191896]
[1742677395043,0.00097868,83916.0,83915.0,0.1846896]
[1742677395243,0.12014617,83916.0,83915.0,0.1846896]
[1742677396040,0.13199259,83916.0,83915.0,0.1846896]
[1742677396436,0.08209259,83916.0,83915.0,0.1846896]
[1742677396743,0.08277259,83916.0,83915.0,0.1846896]
[1742677396936,0.08209259,83916.0,83915.0,0.1846896]
[1742677397138,0.08377259,83916.0,83915.0,0.1846896]
[1742677397440,0.08477259,83916.0,83915.0,0.1846896]
[1742677397636,0.08377259,83916.0,83915.0,0.2168896]
[1742677397843,0.00017878,83924.0,83923.0,0.1191782]
[1742677398045,0.00093878,83924.0,83923.0,0.5978582]
[1742677398343,0.0132935,83924.0,83923.0,0.5978582]
[1742677398533,0.00093878,83924.0,83923.0,0.5978582]
[1742677398734,0.00093878,83924.0,83923.0,0.5978982]
[1742677399532,0.17661508,83929.0,83927.0,0.1191726]
[1742677399840,0.12711508,83929.0,83928.0,0.1191711]
[1742677400029,0.12711508,83929.0,83928.0,0.1200911]
[1742677400230,0.12803508,83929.0,83928.0,0.1812911]
[1742677400441,0.13925011,83929.0,83928.0,0.1812911]
[1742677401143,0.13925011,83929.0,83928.0,0.1842911]
[1742677401445,0.13925011,83929.0,83928.0,0.1872911]
[1742677401845,0.13925011,83929.0,83928.0,0.1842911]
[1742677402052,0.13925011,83929.0,83928.0,0.1872911]
[1742677402752,0.13925011,83929.0,83928.0,0.2199911]
[1742677403438,0.01213503,83929.0,83928.0,0.2169911]
[1742677403740,0.1060034,83934.0,83933.0,0.119164]
[1742677403944,0.10660341,83934.0,83933.0,0.447284]
[1742677404544,0.22574534,83934.0,83933.0,0.479484]
[1742677404740,0.10660341,83934.0,83933.0,0.479484]
[1742677405133,0.00584,83939.0,83938.0,0.1191569]
[1742677405447,0.01788157,83939.0,83938.0,0.2374369]
[1742677406046,0.01889157,83939.0,83938.0,0.2374369]
[1742677406544,0.01889157,83939.0,83938.0,0.2698369]
[1742677406750,0.25718191,83939.0,83938.0,0.00108]
[1742677406943,0.25718191,83939.0,83925.0,0.05976638]
[1742677406944,0.1191721,83928.0,83925.0,0.05976638]
[1742677407150,0.119174,83926.0,83925.0,0.00017878]
[1742677407346,0.1191782,83923.0,83922.0,0.1191793]
[1742677407545,0.1191825,83921.0,83920.0,0.1191819]
[1742677407740,0.1199825,83921.0,83920.0,0.1199819]
[1742677408154,0.1807825,83921.0,83920.0,0.1199819]
[1742677408343,0.29994289,83921.0,83920.0,0.1199819]
[1742677408750,0.29994289,83921.0,83920.0,0.0008]
[1742677408952,0.119183,83920.0,83919.0,0.1191829]
[1742677409152,0.0008,83920.0,83919.0,0.1199829]
[1742677409453,0.0656,83920.0,83919.0,0.1199829]
[1742677409757,0.30394289,83920.0,83919.0,0.0008]
[1742677409957,0.1191898,83915.0,83913.0,0.1191921]
[1742677410160,0.183991,83914.0,83913.0,0.1199921]
[1742677410354,0.184791,83914.0,83913.0,0.1199921]
[1742677410860,0.18476181,83914.0,83913.0,0.1199921]
[1742677411063,0.18476181,83914.0,83913.0,0.1518921]
[1742677411548,0.18476181,83914.0,83913.0,0.1548921]
[1742677411754,0.18476181,83914.0,83913.0,0.1578921]
[1742677414958,0.18476181,83914.0,83913.0,0.1885921]
[1742677418166,0.18476181,83914.0,83913.0,0.0387]
[1742677418355,0.30395281,83914.0,83913.0,0.0068]
[1742677418549,0.30395281,83914.0,83913.0,0.1259924]
[1742677418755,0.33415281,83914.0,83913.0,0.1259924]
[1742677420557,0.33415281,83914.0,83913.0,0.0068]
[1742677421558,0.33415281,83914.0,83913.0,0.006]
[1742677421760,0.33415281,83914.0,83913.0,0.0068]
[1742677422268,0.33415281,83914.0,83913.0,0.006]
[1742677422466,0.33415281,83914.0,83913.0,0.0068]
[1742677423466,0.21496181,83914.0,83913.0,0.1251924]